bitfinex/quotes_BTCUSD_20220111
["timestamp","ask_amount","ask_price","bid_price","bid_amount"]
[1641934883217,0.31159923,42788.0,42787.0,0.0466]
[1641934886450,0.31159923,42788.0,42786.0,0.0999]
[1641934886451,0.37003223,42788.0,42786.0,0.0999]
[1641934886949,0.37203223,42788.0,42781.0,0.47770418]
[1641934887150,0.37203223,42788.0,42781.0,0.47649579]
[1641934887349,0.058432,42785.0,42781.0,0.47649579]
[1641934887853,0.058432,42785.0,42781.0,0.47649582]
[1641934889098,0.058432,42785.0,42781.0,0.47649589]
[1641934889700,0.058432,42785.0,42781.0,0.52649589]
[1641934891100,0.058432,42785.0,42781.0,0.00065225]
[1641934891101,0.27958637,42784.0,42781.0,0.00065225]
[1641934891304,0.37610001,42783.0,42781.0,0.00065225]
[1641934891602,2.97274786,42782.0,42781.0,0.00065225]
[1641934891803,3.34764286,42782.0,42781.0,0.00065225]
[1641934892250,3.81741419,42782.0,42781.0,0.00065225]
[1641934892450,3.81869292,42782.0,42781.0,0.00065225]
[1641934892652,0.7,42781.0,42771.0,0.00015]
[1641934892852,1.124895,42780.0,42779.0,0.00065226]
[1641934893052,0.374895,42780.0,42779.0,0.00065226]
[1641934893250,0.65,42779.0,42766.0,0.00015]
[1641934893451,0.058461,42772.0,42766.0,0.00015]
[1641934893654,0.058463,42770.0,42766.0,0.00015]
[1641934894252,0.116926,42770.0,42767.0,0.374895]
[1641934894455,0.2914456,42768.0,42766.0,0.00015]
[1641934894653,0.24104636,42770.0,42768.0,0.00015]
[1641934895051,0.27806477,42769.0,42768.0,0.00015]
[1641934895251,0.058464,42768.0,42766.0,0.00015]
[1641934895452,0.058464,42768.0,42767.0,0.374895]
[1641934895905,0.058464,42768.0,42767.0,0.375045]
[1641934896507,0.058464,42768.0,42767.0,0.00015]
[1641934896907,0.062464,42768.0,42766.0,0.00015]
[1641934897105,0.06223882,42768.0,42767.0,0.374895]
[1641934897506,0.06223882,42768.0,42767.0,0.375045]
[1641934898106,0.06083882,42768.0,42767.0,0.375045]
[1641934898709,0.06083882,42768.0,42767.0,0.425045]
[1641934898710,0.004,42768.0,42767.0,0.425045]
[1641934898908,0.007,42768.0,42767.0,0.425045]
[1641934899107,0.007,42768.0,42767.0,0.375045]
[1641934899951,0.007,42768.0,42767.0,0.425045]
[1641934900355,0.06564388,42770.0,42767.0,0.425045]
[1641934900855,0.06564388,42770.0,42768.0,0.00015]
[1641934901154,0.07164388,42770.0,42768.0,0.00015]
[1641934901551,0.07164388,42770.0,42767.0,0.00015]
[1641934902353,0.06564388,42770.0,42767.0,0.00015]
[1641934902953,0.01219188,42770.0,42769.0,0.45209433]
[1641934903405,0.01219188,42770.0,42769.0,0.45224433]
[1641934904204,0.00719188,42770.0,42769.0,0.45224433]
[1641934905009,0.01019188,42770.0,42769.0,0.45224433]
[1641934905206,0.01019188,42770.0,42769.0,0.00015]
[1641934905607,0.01019188,42770.0,42768.0,0.00015]
[1641934905806,0.06864588,42770.0,42768.0,0.00015]
[1641934906208,0.06564588,42770.0,42768.0,0.00015]
[1641934906908,0.07464588,42770.0,42768.0,0.00015]
[1641934908152,0.06564588,42770.0,42768.0,0.00015]
[1641934908953,0.07364588,42770.0,42768.0,0.00015]
[1641934909555,0.19056988,42770.0,42768.0,0.00015]
[1641934909855,0.58361867,42769.0,42768.0,0.00015]
[1641934910354,0.28361867,42769.0,42768.0,0.00015]
[1641934911001,0.29361867,42769.0,42768.0,0.00015]
[1641934911206,0.29361867,42769.0,42767.0,0.00015]
[1641934911401,0.35207767,42769.0,42767.0,0.00015]
[1641934911600,0.068459,42769.0,42767.0,0.00015]
[1641934912003,0.26447277,42768.0,42767.0,0.00015]
[1641934912403,0.56447277,42768.0,42767.0,0.00015]
[1641934912603,0.54781146,42768.0,42767.0,0.00015]
[1641934913003,0.55781146,42768.0,42767.0,0.00015]
[1641934913604,0.93270646,42768.0,42766.0,0.00015]
[1641934913806,0.28028858,42767.0,42766.0,0.00015]
[1641934914003,0.33293777,42768.0,42766.0,0.00015]
[1641934914203,0.058465,42768.0,42766.0,0.00015]
[1641934914653,0.1169274,42768.0,42766.0,0.00015]
[1641934915054,0.1249274,42768.0,42766.0,0.00015]
[1641934915255,0.28118982,42767.0,42766.0,0.00015]
[1641934916459,0.058465,42768.0,42766.0,0.00015]
[1641934917057,0.063465,42768.0,42766.0,0.00015]
[1641934918316,0.058465,42768.0,42766.0,0.00015]
[1641934919107,0.065465,42768.0,42766.0,0.00015]
[1641934920307,0.058465,42768.0,42766.0,0.00015]
[1641934921107,0.064465,42768.0,42766.0,0.00015]
[1641934922254,0.29604634,42767.0,42766.0,0.00015]
[1641934922656,0.064465,42768.0,42767.0,0.001]
[1641934922854,0.058465,42768.0,42767.0,0.001]
[1641934923057,0.058465,42768.0,42767.0,0.00115]
[1641934923657,0.39745718,42768.0,42767.0,0.00115]
[1641934925058,0.40545718,42768.0,42767.0,0.00115]
[1641934926407,0.39745718,42768.0,42767.0,0.00115]
[1641934927008,0.40545718,42768.0,42767.0,0.00115]
[1641934927709,0.066465,42768.0,42767.0,0.00115]
[1641934928309,0.058465,42768.0,42767.0,0.00115]
[1641934929112,0.065465,42768.0,42767.0,0.00115]
[1641934930353,0.058465,42768.0,42767.0,0.00115]
[1641934931055,0.063465,42768.0,42767.0,0.00115]
[1641934932057,0.47268609,42768.0,42767.0,0.00115]
[1641934932257,0.84258109,42768.0,42767.0,0.00115]
[1641934933058,0.84758109,42768.0,42767.0,0.00115]
[1641934933304,0.47268609,42768.0,42767.0,0.00115]
[1641934933907,0.005,42768.0,42767.0,0.00115]
[1641934934307,0.06564988,42770.0,42767.0,0.00115]
[1641934934707,0.06564988,42770.0,42768.0,0.00015]
[1641934935109,0.08564988,42770.0,42768.0,0.00015]
[1641934935708,0.02719188,42770.0,42768.0,0.00015]
[1641934936109,0.02719188,42770.0,42768.0,0.28585958]
[1641934936310,0.00719188,42770.0,42768.0,0.28585958]
[1641934936510,0.00719188,42770.0,42769.0,0.00015]
[1641934936710,0.00719188,42770.0,42769.0,0.35236037]
[1641934937159,0.01019188,42770.0,42769.0,0.35236037]
[1641934937356,0.01019188,42770.0,42769.0,1.02410367]
[1641934937555,0.003,42770.0,42769.0,1.02410367]
[1641934938356,1.50279142,42779.0,42771.0,0.36335052]
[1641934938557,0.94109142,42779.0,42773.0,0.058445]
[1641934939257,0.01429142,42779.0,42773.0,0.058445]
[1641934939764,0.01429142,42779.0,42774.0,0.00064295]
[1641934940359,0.00129142,42779.0,42774.0,0.00064295]
[1641934940810,0.4183,42780.0,42774.0,0.00064294]
[1641934941007,0.06,42779.0,42774.0,0.00064294]
[1641934941505,0.06,42779.0,42775.0,0.058442]
[1641934942105,0.058447,42778.0,42774.0,0.00064294]
[1641934942708,0.058447,42778.0,42772.0,0.28210256]
[1641934942908,0.108448,42779.0,42772.0,0.28210256]
[1641934943106,0.30060853,42777.0,42774.0,0.00064296]
[1641934943306,0.070447,42778.0,42774.0,0.00064296]
[1641934943506,0.012,42778.0,42774.0,0.00064296]
[1641934944307,0.012,42778.0,42772.0,0.00063843]
[1641934944757,0.012,42778.0,42774.0,0.058443]
[1641934944966,0.41899181,42780.0,42774.0,0.058443]
[1641934945157,0.03697728,42778.0,42774.0,0.058443]
[1641934945357,0.03697728,42778.0,42775.0,0.66656092]
[1641934945561,0.03697728,42778.0,42775.0,0.3763702]
[1641934945757,0.03697728,42778.0,42776.0,0.058439]
[1641934946158,0.006,42778.0,42777.0,1.04395187]
[1641934946458,0.00069181,42780.0,42777.0,1.04395187]
[1641934946459,0.00069181,42780.0,42777.0,0.76544687]
[1641934946658,0.00069181,42780.0,42777.0,0.39055187]
[1641934946858,0.00069182,42780.0,42778.0,0.058437]
[1641934948160,0.00069425,42781.0,42778.0,0.058437]
[1641934948810,0.00069425,42781.0,42777.0,0.0466]
[1641934949009,0.00069425,42781.0,42778.0,0.018]
[1641934949211,0.2605433,42782.0,42778.0,0.018]
[1641934949411,0.00069424,42782.0,42780.0,0.36504793]
[1641934950512,0.00122247,42787.0,42780.0,0.42348293]
[1641934950513,0.00069423,42783.0,42780.0,0.42348293]
[1641934950811,0.00788404,42783.0,42780.0,0.42348293]
[1641934951211,0.01288404,42783.0,42780.0,0.43448293]
[1641934951713,0.01218981,42783.0,42780.0,0.43448293]
[1641934952158,0.01218981,42783.0,42780.0,0.37604793]
[1641934952357,0.00718981,42783.0,42780.0,0.36504793]
[1641934953157,0.00718981,42783.0,42780.0,0.37604793]
[1641934953158,0.01118981,42783.0,42780.0,0.37604793]
[1641934953959,0.01118981,42783.0,42780.0,0.43448293]
[1641934954359,0.00718981,42783.0,42780.0,0.42348293]
[1641934955164,0.01118981,42783.0,42780.0,0.43448293]
[1641934955363,0.01118981,42783.0,42782.0,0.33676502]
[1641934955661,0.01118981,42783.0,42780.0,0.37604793]
[1641934956312,0.00718981,42783.0,42780.0,0.36504793]
[1641934956709,0.00718981,42783.0,42780.0,0.78311752]
[1641934957110,0.01518981,42783.0,42780.0,0.79511752]
[1641934958311,0.00718981,42783.0,42780.0,0.36504793]
[1641934959112,0.01318981,42783.0,42780.0,0.37904793]
[1641934960364,0.00718981,42783.0,42780.0,0.36504793]
[1641934960761,0.06562981,42783.0,42780.0,0.36504793]
[1641934961262,0.07362981,42783.0,42780.0,0.37804793]
[1641934961464,0.374895,42782.0,42780.0,0.37804793]
[1641934961663,0.07362981,42783.0,42780.0,0.37804793]
[1641934962363,0.06562981,42783.0,42780.0,0.36504793]
[1641934963063,0.07162981,42783.0,42780.0,0.38004793]
[1641934963310,0.07162981,42783.0,42780.0,0.015]
[1641934963510,1.90710084,42782.0,42780.0,0.015]
[1641934964310,1.90710084,42782.0,42776.0,0.39152711]
[1641934964510,0.058445,42781.0,42776.0,0.39152711]
[1641934964710,0.116889,42781.0,42776.0,0.05]
[1641934964910,0.116889,42781.0,42773.0,0.56721648]
[1641934965111,0.40196714,42781.0,42776.0,0.024]
[1641934965911,0.40266115,42781.0,42776.0,0.024]
[1641934966111,0.12058301,42781.0,42776.0,0.024]
[1641934966310,0.12058301,42781.0,42775.0,0.058442]
[1641934966511,0.11758301,42781.0,42775.0,0.058442]
[1641934966713,0.05913801,42781.0,42775.0,0.058442]
[1641934967161,0.00069401,42780.0,42775.0,0.123442]
[1641934967460,0.00069401,42780.0,42775.0,0.173442]
[1641934968163,0.00069401,42780.0,42775.0,0.115]
[1641934968362,0.00069402,42780.0,42777.0,0.058439]
[1641934969163,0.00069402,42780.0,42777.0,0.119439]
[1641934969365,0.00069402,42780.0,42777.0,0.169439]
[1641934969564,0.00069401,42781.0,42777.0,0.169439]
[1641934969764,0.00069401,42781.0,42777.0,0.111]
[1641934970363,0.00069401,42781.0,42777.0,0.05]
[1641934970563,0.00069401,42781.0,42775.0,0.108442]
[1641934970809,0.000694,42781.0,42773.0,0.50878448]
[1641934971207,0.001694,42781.0,42775.0,0.065]
[1641934972010,0.00069401,42780.0,42775.0,0.065]
[1641934972409,0.00069401,42780.0,42775.0,0.058441]
[1641934973211,0.00269402,42780.0,42779.0,0.36437235]
[1641934974215,0.00269402,42780.0,42775.0,0.063]
[1641934974567,0.058444,42781.0,42774.0,0.058443]
[1641934974769,0.000694,42782.0,42774.0,0.058443]
[1641934975269,0.001,42781.0,42776.0,0.43215179]
[1641934975668,0.00069401,42780.0,42776.0,0.49059179]
[1641934977167,0.00169401,42780.0,42776.0,0.60259179]
[1641934978409,0.00069401,42780.0,42776.0,0.48215179]
[1641934979209,0.00169401,42780.0,42776.0,0.54815179]
[1641934980111,0.00169401,42780.0,42778.0,0.058438]
[1641934980311,0.00238802,42780.0,42778.0,0.058438]
[1641934980515,0.00069401,42780.0,42778.0,0.058438]
[1641934981117,0.00269401,42780.0,42778.0,0.062]
[1641934981613,0.002,42780.0,42778.0,0.062]
[1641934982458,0.000694,42781.0,42776.0,0.05]
[1641934982657,0.000694,42781.0,42774.0,0.108442]
[1641934982859,0.000694,42781.0,42774.0,0.42120092]
[1641934983258,0.003694,42781.0,42774.0,0.48720092]
[1641934983665,0.24634838,42778.0,42774.0,0.48720092]
[1641934984061,0.058445,42779.0,42774.0,0.48720092]
[1641934984462,0.058445,42779.0,42774.0,0.42120092]
[1641934985264,0.060445,42779.0,42774.0,0.49020092]
[1641934986112,0.002,42779.0,42774.0,0.49020092]
[1641934986509,0.00069401,42780.0,42774.0,0.42120092]
[1641934987311,0.00369401,42780.0,42774.0,0.48820092]
[1641934987512,0.00438802,42780.0,42774.0,0.48820092]
[1641934987713,0.00369401,42780.0,42774.0,0.48820092]
[1641934989213,0.00369401,42780.0,42774.0,0.49120092]
[1641934991160,0.00369401,42780.0,42774.0,0.48920092]
[1641934992459,0.00369401,42780.0,42774.0,0.87146621]
[1641934992660,0.00277557,42787.0,42779.0,0.058432]
[1641934992861,0.00277557,42787.0,42780.0,0.35457684]
[1641934993061,0.00277557,42787.0,42786.0,0.00129658]
[1641934993324,0.00277557,42787.0,42786.0,0.10243658]
[1641934993519,0.00277557,42787.0,42786.0,1.45902682]
[1641934993719,0.00015,42790.0,42787.0,0.00725388]
[1641934993922,0.00015,42790.0,42787.0,0.05385388]
[1641934994718,0.00015,42790.0,42788.0,0.058415]
[1641934994919,0.00015,42790.0,42788.0,0.46504691]
[1641934995119,0.00015,42790.0,42788.0,0.51504691]
[1641934995320,0.00015,42790.0,42789.0,0.374895]
[1641934995920,0.00015,42790.0,42788.0,0.24930753]
[1641934996321,0.00015,42790.0,42789.0,0.374895]
[1641934997159,0.00015,42790.0,42789.0,0.400895]
[1641934998065,0.00015,42790.0,42789.0,0.026]
[1641934998361,0.00015,42790.0,42787.0,0.0966]
[1641934999262,0.00015,42790.0,42787.0,0.178025]
[1641935000265,0.00015,42790.0,42789.0,0.41286569]
[1641935001310,0.00015,42790.0,42789.0,0.43086569]
[1641935002910,0.00015,42790.0,42789.0,0.018]
[1641935003111,0.00015,42790.0,42785.0,0.058428]
[1641935003310,0.124025,42790.0,42789.0,0.017]
[1641935003511,0.84892,42790.0,42789.0,0.017]
[1641935003709,0.85015769,42790.0,42789.0,0.017]
[1641935003910,1.27486684,42790.0,42789.0,0.017]
[1641935004415,1.27486684,42790.0,42780.0,0.30797684]
[1641935004663,0.25400153,42782.0,42780.0,0.30797684]
[1641935005265,0.25500153,42782.0,42780.0,0.33997684]
[1641935005663,0.31344453,42782.0,42780.0,0.33997684]
[1641935005863,0.00719013,42781.0,42780.0,0.33997684]
[1641935006464,0.00719013,42781.0,42780.0,0.30797684]
[1641935007266,0.02519013,42781.0,42780.0,0.31197684]
[1641935008065,0.40008513,42781.0,42780.0,0.31197684]
[1641935008508,0.40008513,42781.0,42780.0,0.30797684]
[1641935008509,0.38208513,42781.0,42780.0,0.30797684]
[1641935009310,0.39808513,42781.0,42780.0,0.30797684]
[1641935009811,0.44468513,42781.0,42780.0,0.30797684]
[1641935010010,0.44588647,42781.0,42780.0,0.30797684]
[1641935010410,0.74588647,42781.0,42780.0,0.30797684]
[1641935010611,0.72988647,42781.0,42780.0,0.30797684]
[1641935010811,0.47988647,42781.0,42780.0,0.30797684]
[1641935011212,0.49188647,42781.0,42780.0,0.30797684]
[1641935012460,0.47988647,42781.0,42780.0,0.30797684]
[1641935013363,0.94088647,42781.0,42780.0,0.30797684]
[1641935013560,0.49088647,42781.0,42780.0,0.30797684]
[1641935013760,0.44088647,42781.0,42780.0,0.30797684]
[1641935014560,0.42988647,42781.0,42780.0,0.30797684]
[1641935015361,0.43988647,42781.0,42780.0,0.30797684]
[1641935015821,0.058459,42778.0,42775.0,0.00064277]
[1641935016013,0.433355,42777.0,42775.0,0.00064277]
[1641935016414,0.433355,42777.0,42768.0,0.00015]
[1641935016415,0.00126141,42775.0,42774.0,0.0006431]
[1641935016612,0.37615641,42775.0,42774.0,0.0006431]
[1641935017416,0.38715641,42775.0,42774.0,0.0006431]
[1641935017615,0.38715641,42775.0,42768.0,0.058447]
[1641935017814,0.011,42775.0,42772.0,0.41435241]
[1641935018615,0.116906,42776.0,42772.0,0.41435241]
[1641935019417,0.130906,42776.0,42772.0,0.41435241]
[1641935019660,0.014,42776.0,42771.0,0.38935928]
[1641935020062,0.014,42776.0,42772.0,0.00057333]
[1641935020661,0.014,42776.0,42772.0,0.46015147]
[1641935021159,0.058446,42778.0,42772.0,0.4607248]
[1641935021360,0.011,42776.0,42772.0,0.46015147]
[1641935022362,0.011,42776.0,42772.0,0.46017282]
[1641935022762,0.32815207,42778.0,42772.0,0.46017282]
[1641935022963,0.058446,42778.0,42772.0,0.51017282]
[1641935023162,0.058446,42778.0,42772.0,0.46017282]
[1641935023428,0.01,42778.0,42772.0,0.51017282]
[1641935023628,0.058448,42776.0,42773.0,0.00059466]
[1641935024128,0.33873126,42775.0,42773.0,0.00059466]
[1641935024728,0.116899,42776.0,42773.0,0.00059466]
[1641935024928,0.116899,42776.0,42772.0,0.00066935]
[1641935025329,0.129899,42776.0,42772.0,0.00066935]
[1641935025931,0.40432566,42776.0,42772.0,0.00133158]
[1641935026131,0.40432566,42776.0,42772.0,0.00066223]
[1641935026432,0.129899,42776.0,42772.0,0.00066223]
[1641935026631,0.03279117,42779.0,42772.0,0.00066223]
[1641935027259,0.03279119,42779.0,42773.0,0.00066221]
[1641935027458,0.03379119,42779.0,42773.0,0.00066221]
[1641935028463,0.03380115,42779.0,42773.0,0.00065277]
[1641935028661,0.03280115,42779.0,42773.0,0.00065277]
[1641935029062,0.09124315,42779.0,42773.0,0.00065277]
[1641935029263,0.03280115,42779.0,42773.0,0.00065277]
[1641935029462,0.03380115,42779.0,42773.0,0.00065277]
[1641935029664,0.03379355,42779.0,42773.0,0.00063059]
[1641935030063,0.058445,42777.0,42773.0,0.00063059]
[1641935031115,0.058449,42776.0,42773.0,0.00063059]
[1641935031312,0.05845,42775.0,42773.0,0.00126119]
[1641935031513,0.05845,42775.0,42773.0,0.0006306]
[1641935032313,0.05845,42775.0,42772.0,0.00063086]
[1641935033314,0.05945,42775.0,42771.0,0.38966648]
[1641935033516,0.05845,42774.0,42771.0,0.38966648]
[1641935033716,0.05845,42774.0,42771.0,0.43966648]
[1641935034660,0.05845,42774.0,42771.0,0.43902524]
[1641935036364,0.058445,42777.0,42771.0,0.43902524]
[1641935036564,0.03279645,42779.0,42771.0,0.43902524]
[1641935036965,0.03279525,42779.0,42771.0,0.43902524]
[1641935037366,0.03479525,42779.0,42771.0,0.43902524]
[1641935037567,0.03479525,42779.0,42774.0,0.058441]
[1641935037767,0.03479525,42779.0,42771.0,0.55590224]
[1641935038071,0.03479527,42779.0,42773.0,0.00063805]
[1641935038714,0.03279527,42779.0,42773.0,0.00063805]
[1641935039117,0.14968427,42779.0,42773.0,0.00063805]
[1641935039315,0.15268428,42779.0,42773.0,0.00063804]
[1641935039516,0.15268428,42779.0,42774.0,0.05]
[1641935039715,0.15268428,42779.0,42773.0,0.00063804]
[1641935040517,0.0036941,42779.0,42773.0,0.00063893]
[1641935040722,0.0006941,42779.0,42773.0,0.00063893]
[1641935040918,0.0006941,42779.0,42777.0,0.3761565]
[1641935041118,0.0006941,42779.0,42778.0,1.524883]
[1641935041320,0.0006941,42779.0,42778.0,1.85699107]
[1641935041518,0.0006941,42779.0,42778.0,2.25740533]
[1641935041717,0.0008441,42780.0,42778.0,2.30740533]
[1641935041917,0.0008441,42780.0,42779.0,1.72438502]
[1641935042161,0.0008441,42780.0,42779.0,1.82438502]
[1641935042361,0.0008441,42780.0,42779.0,1.87438502]
[1641935042962,0.00015,42780.0,42779.0,0.72438502]
[1641935043162,0.00015,42780.0,42779.0,0.68280802]
[1641935043365,0.00015,42780.0,42779.0,0.177243]
[1641935043561,0.00015,42780.0,42779.0,0.127243]
[1641935043762,0.00015,42780.0,42779.0,0.06882]
[1641935044962,0.00015,42780.0,42774.0,0.116869]
[1641935045263,0.00015,42780.0,42774.0,0.166869]
[1641935045461,0.00015,42780.0,42775.0,0.374895]
[1641935045913,0.00015,42780.0,42776.0,0.38284572]
[1641935046113,0.00015,42780.0,42778.0,0.058435]
[1641935046315,0.00015,42780.0,42779.0,0.374858]
[1641935046611,0.00084394,42780.0,42779.0,0.374858]
[1641935047812,0.00015,42780.0,42779.0,0.374858]
[1641935048613,0.00015,42780.0,42779.0,0.424858]
[1641935051261,0.00015,42780.0,42779.0,0.524858]
[1641935054109,0.00015,42780.0,42779.0,0.424858]
[1641935061109,0.00015,42780.0,42779.0,0.374858]
[1641935062509,0.00015,42780.0,42779.0,0.424858]
[1641935071309,0.00015,42780.0,42779.0,0.374858]
[1641935072366,0.058591,42780.0,42776.0,0.38284572]
[1641935072565,0.00719028,42779.0,42777.0,0.374895]
[1641935073163,0.00719028,42779.0,42777.0,0.424895]
[1641935073567,0.01219028,42779.0,42777.0,0.424895]
[1641935074767,0.00719028,42779.0,42777.0,0.424895]
[1641935075568,0.01219028,42779.0,42777.0,0.424895]
[1641935076810,0.00719028,42779.0,42777.0,0.424895]
[1641935082064,0.00719028,42779.0,42777.0,0.4716395]
[1641935082664,0.00719028,42779.0,42777.0,0.5884935]
[1641935082862,0.00719028,42779.0,42778.0,0.127244]
[1641935083513,0.00719028,42779.0,42778.0,0.427244]
[1641935084515,0.00719028,42779.0,42778.0,0.127244]
[1641935084715,0.00719028,42779.0,42778.0,1.137244]
[1641935087263,0.00719028,42779.0,42778.0,1.4508557]
[1641935087464,0.00719028,42779.0,42778.0,1.137244]
[1641935087864,0.00015,42780.0,42778.0,1.137244]
[1641935088063,0.00015,42780.0,42779.0,0.374878]
[1641935088264,0.00015,42780.0,42779.0,0.424878]
[1641935089868,0.00015,42780.0,42778.0,1.06]
[1641935090469,0.00015,42780.0,42778.0,1.01]
[1641935090913,0.00015,42780.0,42779.0,0.374895]
[1641935091914,0.00015,42780.0,42779.0,0.424895]
[1641935098618,0.00015,42780.0,42779.0,0.05]
[1641935098824,0.00015,42780.0,42778.0,0.15517734]
[1641935099019,0.00015,42780.0,42779.0,0.424895]
[1641935101023,0.00015,42780.0,42776.0,0.49128172]
[1641935101623,0.00015,42780.0,42776.0,0.43284572]
[1641935101824,0.00084397,42780.0,42776.0,0.43284572]
[1641935102461,0.00084397,42780.0,42776.0,0.49128172]
[1641935103059,0.00084397,42780.0,42776.0,0.43284572]
[1641935103262,0.00084397,42780.0,42778.0,0.00584523]
[1641935103563,0.00084397,42780.0,42779.0,3.47904694]
[1641935103759,0.00084397,42780.0,42779.0,3.90953589]
[1641935103960,0.00084397,42780.0,42779.0,4.0029451]
[1641935104160,0.00015,42780.0,42779.0,4.0029451]
[1641935104360,0.00015,42780.0,42779.0,4.14313547]
[1641935104562,0.00069397,42781.0,42780.0,1.15]
[1641935104761,0.00069397,42781.0,42780.0,1.3166804]
[1641935104960,0.00069397,42781.0,42780.0,0.2666804]
[1641935105160,0.00069397,42781.0,42780.0,0.3166804]
[1641935105360,0.00069396,42783.0,42780.0,0.6166804]
[1641935105561,0.00069396,42783.0,42782.0,0.374866]
[1641935105820,0.00069396,42783.0,42782.0,0.86641578]
[1641935106616,0.00069394,42785.0,42783.0,0.55666645]
[1641935106817,0.00069394,42785.0,42784.0,1.48422612]
[1641935107017,0.00069394,42785.0,42784.0,0.43422612]
[1641935107419,0.00069394,42785.0,42784.0,0.118788]
[1641935107719,0.00069392,42787.0,42784.0,0.209788]
[1641935107921,0.00069392,42787.0,42785.0,0.47293028]
[1641935108119,0.00069392,42787.0,42786.0,0.374827]
[1641935108324,0.00069392,42787.0,42786.0,0.424827]
[1641935109029,0.00788203,42789.0,42787.0,0.058421]
[1641935109226,0.00788203,42789.0,42788.0,0.068778]
[1641935110070,0.00718813,42789.0,42788.0,0.068778]
[1641935111472,0.00718813,42789.0,42788.0,0.144778]
[1641935111670,0.00718813,42789.0,42788.0,0.203197]
[1641935111870,0.00718813,42789.0,42788.0,0.194778]
[1641935112869,0.00718813,42789.0,42788.0,0.118778]
[1641935113071,0.00718813,42789.0,42788.0,0.068778]
[1641935113514,0.00718813,42789.0,42788.0,0.151778]
[1641935114918,0.00718813,42789.0,42788.0,0.068778]
[1641935115619,0.22203186,42793.0,42788.0,0.131]
[1641935115818,0.0071883,42792.0,42789.0,1.2]
[1641935116218,0.00069389,42791.0,42789.0,1.2]
[1641935117262,0.0656153,42792.0,42789.0,1.2]
[1641935117663,0.0656153,42792.0,42789.0,1.268]
[1641935118263,0.0656153,42792.0,42790.0,0.45394932]
[1641935119369,0.0071883,42792.0,42790.0,0.45394932]
[1641935119566,0.0091883,42792.0,42790.0,0.51094932]
[1641935120820,0.0071883,42792.0,42790.0,0.45394932]
[1641935121616,0.0101883,42792.0,42790.0,0.51094932]
[1641935122019,0.0101883,42792.0,42790.0,0.56094932]
[1641935123416,0.0101883,42792.0,42791.0,0.058415]
[1641935125361,0.0071883,42792.0,42791.0,0.058415]
[1641935125563,0.0071883,42792.0,42791.0,0.117415]
[1641935126162,0.0071883,42792.0,42791.0,0.059]
[1641935126864,0.0071883,42792.0,42790.0,0.50394932]
[1641935127564,0.0071883,42792.0,42790.0,0.51494932]
[1641935128417,0.00069502,42793.0,42791.0,0.4]
[1641935128618,0.00069502,42793.0,42790.0,0.62336632]
[1641935128821,0.00069502,42793.0,42790.0,0.56236632]
[1641935129017,0.00069502,42793.0,42791.0,0.38907361]
[1641935129418,0.00069501,42794.0,42791.0,0.38907361]
[1641935129620,0.00069501,42794.0,42792.0,0.058408]
[1641935129821,0.00069501,42794.0,42793.0,0.0466]
[1641935130617,0.02845891,42799.0,42793.0,0.0466]
[1641935130618,0.000695,42796.0,42793.0,0.0466]
[1641935131019,0.000695,42796.0,42794.0,0.058409]
[1641935131222,0.000695,42796.0,42794.0,0.105009]
[1641935131420,0.000695,42796.0,42794.0,0.155009]
[1641935131620,0.000695,42796.0,42795.0,0.666808]
[1641935131822,0.4183,42802.0,42796.0,0.374895]
[1641935131823,0.00718597,42801.0,42796.0,0.374895]
[1641935132063,0.00718597,42801.0,42798.0,0.058405]
[1641935132464,0.00718597,42801.0,42798.0,0.1051279]
[1641935132662,0.00718597,42801.0,42796.0,0.46272325]
[1641935133061,0.00718597,42801.0,42796.0,0.86385299]
[1641935133262,0.28203525,42801.0,42796.0,0.86385299]
[1641935133662,0.28203525,42801.0,42796.0,0.87985299]
[1641935133862,0.28203525,42801.0,42796.0,0.92985299]
[1641935134062,0.28203525,42801.0,42796.0,0.52872325]
[1641935134964,0.28203525,42801.0,42796.0,0.46272325]
[1641935135362,0.2828783,42801.0,42796.0,0.46272325]
[1641935135561,0.2828783,42801.0,42796.0,0.53072325]
[1641935135823,0.2828783,42801.0,42796.0,0.48072325]
[1641935136018,0.058416,42800.0,42796.0,0.48072325]
[1641935136819,0.058416,42800.0,42796.0,0.41272325]
[1641935137224,0.2828783,42801.0,42796.0,0.41272325]
[1641935137421,0.2828783,42801.0,42796.0,0.46272325]
[1641935137621,0.2828783,42801.0,42796.0,0.53172325]
[1641935137826,0.00084305,42800.0,42796.0,0.53172325]
[1641935138322,0.00084305,42800.0,42797.0,0.058407]
[1641935138821,0.00084305,42800.0,42796.0,0.46272325]
[1641935139022,0.28203525,42801.0,42796.0,0.46272325]
[1641935139023,0.2828783,42801.0,42796.0,0.46272325]
[1641935139323,0.3412943,42801.0,42796.0,0.46272325]
[1641935139567,0.3412943,42801.0,42796.0,0.52272325]
[1641935139568,0.058414,42800.0,42796.0,0.52272325]
[1641935140168,0.05907411,42800.0,42796.0,0.52272325]
[1641935140371,0.05907411,42800.0,42796.0,0.47272325]
[1641935140870,0.05907411,42800.0,42796.0,0.41272325]
[1641935141270,0.04207411,42800.0,42796.0,0.41272325]
[1641935141672,0.04407411,42800.0,42796.0,0.47172325]
[1641935142675,0.058421,42799.0,42796.0,0.47172325]
[1641935142878,0.058419,42799.0,42796.0,0.41272325]
[1641935143713,0.058419,42799.0,42796.0,0.46772325]
[1641935144914,0.27051597,42798.0,42796.0,0.46772325]
[1641935145215,0.00718597,42801.0,42796.0,0.46772325]
[1641935145417,0.00718597,42801.0,42796.0,0.41272325]
[1641935145715,0.001,42798.0,42796.0,0.47572325]
[1641935146917,0.058414,42799.0,42796.0,0.41272325]
[1641935147364,0.05921897,42799.0,42796.0,0.41272325]
[1641935147765,0.00180497,42799.0,42796.0,0.46972325]
[1641935148667,0.001,42799.0,42796.0,0.46972325]
[1641935148867,0.001,42799.0,42796.0,0.41272325]
[1641935149068,0.00080497,42800.0,42796.0,0.41272325]
[1641935149470,0.058414,42799.0,42796.0,0.41272325]
[1641935149669,0.058414,42799.0,42796.0,0.42172325]
[1641935149871,0.00380497,42800.0,42796.0,0.42172325]
[1641935151013,0.00076656,42800.0,42796.0,0.41272325]
[1641935151612,0.00976656,42800.0,42796.0,0.42172325]
[1641935152217,0.00967672,42800.0,42796.0,0.42172325]
[1641935152414,0.25512125,42799.0,42796.0,0.42172325]
[1641935152614,0.26904215,42798.0,42796.0,0.42172325]